fUSD/lending_fUSD_20240227
["ID","MTS","AMOUNT","RATE_DAILY","PERIOD"]
[315438733,1709038239171,-500.0,0.00022898,2]
[315438736,1709038239180,-500.0,0.00022898,2]
[315438738,1709038239189,-500.0,0.00022898,2]
[315438740,1709038239199,-500.0,0.00022898,2]
[315438742,1709038239208,-500.0,0.00022898,2]
[315438744,1709038239218,-500.0,0.00022898,2]
[315438746,1709038239227,-567.93,0.00022898,2]
[315438748,1709038239236,-793.77,0.00022898,2]
[315438750,1709038239246,-1540.45,0.00022898,2]
[315438751,1709038239255,-401.09631013,0.00022899,2]
[315438754,1709038239265,-1000.0,0.00022899,7]
[315438756,1709038239274,-500.0,0.00022899,2]
[315438758,1709038239286,-500.0,0.00022899,2]
[315438760,1709038239295,-500.0,0.00022899,2]
[315438761,1709038239304,-500.0,0.00022899,2]
[315438762,1709038239314,-500.0,0.00022899,2]
[315438763,1709038239323,-500.0,0.00022899,2]
[315438764,1709038239332,-500.0,0.00022899,2]
[315438765,1709038239341,-500.0,0.00022899,2]
[315438766,1709038239354,-500.0,0.00022899,2]
[315438767,1709038239363,-500.0,0.00022899,2]
[315438769,1709038239373,-500.0,0.00022899,2]
[315438771,1709038239382,-500.0,0.00022899,2]
[315438773,1709038239391,-500.0,0.00022899,2]
[315438775,1709038239402,-500.0,0.00022899,2]
[315438777,1709038239411,-622.14,0.00022899,2]
[315438779,1709038239420,-500.0,0.00022899,2]
[315438781,1709038239429,-500.0,0.00022899,2]
[315438783,1709038239439,-534.0571112,0.00022899,2]
[315438785,1709038239449,-500.0,0.00022899,2]
[315438787,1709038239458,-500.0,0.00022899,2]
[315438789,1709038239467,-500.0,0.00022899,2]
[315438791,1709038239477,-500.0,0.00022899,2]
[315438793,1709038239487,-500.0,0.00022899,2]
[315438795,1709038239498,-500.0,0.00022899,2]
[315438797,1709038239508,-500.0,0.00022899,2]
[315438799,1709038239518,-500.0,0.00022899,2]
[315438802,1709038239527,-500.0,0.00022899,2]
[315438804,1709038239539,-500.0,0.00022899,2]
[315438805,1709038239548,-500.0,0.00022899,2]
[315438807,1709038239558,-213.63940303,0.00022899,2]
[315438810,1709038239570,-500.0,0.00022899,2]
[315438812,1709038239579,-500.0,0.00022899,2]
[315438814,1709038239588,-500.0,0.00022899,2]
[315438815,1709038239597,-500.0,0.00022899,2]
[315438818,1709038239607,-500.0,0.00022899,2]
[315438820,1709038239617,-500.0,0.00022899,2]
[315438821,1709038239627,-500.0,0.00022899,2]
[315438823,1709038239635,-500.0,0.00022899,2]
[315438825,1709038239645,-500.0,0.00022899,2]
[315438827,1709038239655,-500.0,0.00022899,2]
[315438829,1709038239664,-500.0,0.00022899,2]
[315438831,1709038239673,-500.0,0.00022899,2]
[315438833,1709038239682,-500.0,0.00022899,2]
[315438835,1709038239692,-500.0,0.00022899,2]
[315438837,1709038239702,-500.0,0.00022899,2]
[315438839,1709038239713,-500.0,0.00022899,2]
[315438841,1709038239723,-502.05553975,0.00022899,2]
[315438843,1709038239733,-500.0,0.00022899,2]
[315438845,1709038239742,-500.0,0.00022899,2]
[315438847,1709038239751,-168.95552952,0.00022899,2]
[315438849,1709038239760,-500.0,0.00022899,2]
[315438851,1709038239769,-520.8704777,0.00022899,2]
[315438853,1709038239778,-500.0,0.00022899,2]
[315438855,1709038239788,-500.0,0.00022899,2]
[315438857,1709038239797,-500.0,0.00022899,2]
[315438858,1709038239806,-500.0,0.00022899,2]
[315438859,1709038239815,-500.0,0.00022899,2]
[315438860,1709038239825,-500.0,0.00022899,2]
[315438861,1709038239834,-500.0,0.00022899,2]
[315438862,1709038239844,-500.0,0.00022899,2]
[315438863,1709038239853,-500.0,0.00022899,2]
[315438864,1709038239862,-500.0,0.00022899,2]
[315438865,1709038239872,-372.24845582,0.00022899,2]
[315438866,1709038239886,-55.24154418,0.00022899,2]
[315438868,1709038239895,-267.44841089,0.00022899,2]
[315438896,1709038240147,-232.55158911,0.00022899,2]
[315438898,1709038240156,-500.0,0.00022899,2]
[315438901,1709038240165,-11.76143678,0.00022899,2]
[315438903,1709038240177,-530.77675128,0.00022899,2]
[315438905,1709038240187,-236.14,0.00022899,2]
[315438907,1709038240196,-500.0,0.00022899,2]
[315438909,1709038240205,-1000.0,0.00022899,5]
[315438911,1709038240216,-500.0,0.00022899,2]
[315438913,1709038240225,-529.95766323,0.00022899,2]
[315438915,1709038240234,-500.0,0.00022899,2]
[315438917,1709038240243,-435.48,0.00022899,2]
[315438919,1709038240252,-500.0,0.00022899,2]
[315438921,1709038240262,-500.0,0.00022899,2]
[315438923,1709038240271,-276.50072359,0.000229,2]
[315438925,1709038240282,-194.16873205,0.000229,2]
[315438928,1709038240291,-1615.38,0.000229,2]
[315438931,1709038240300,-25540.73,0.000229,2]
[315438934,1709038240309,-500.0,0.00022904,2]
[315438936,1709038240318,-169.01,0.00022916,2]
[315438939,1709038240327,-500.0,0.00022919,2]
[315438942,1709038240336,-1541.4357,0.00022928,2]
[315438944,1709038240346,-1455.4987,0.00022928,2]
[315438946,1709038240356,-500.0,0.00022928,2]
[315438949,1709038240365,-625.61,0.00022928,2]
[315438952,1709038240375,-500.0,0.00022928,2]
[315438954,1709038240384,-500.0,0.00022928,2]
[315438956,1709038240393,-500.0,0.00022928,2]
[315438958,1709038240405,-1248.77,0.00022928,2]
[315438960,1709038240414,-500.0,0.00022928,2]
[315438962,1709038240425,-1458.65,0.00022928,2]
[315438964,1709038240435,-500.0,0.00022928,2]
[315438966,1709038240445,-500.0,0.00022928,2]
[315438968,1709038240455,-458.66,0.00022928,2]
[315438970,1709038240464,-500.0,0.00022928,2]
[315438972,1709038240473,-500.0,0.00022928,2]
[315438974,1709038240483,-500.0,0.00022928,2]
[315438976,1709038240492,-500.0,0.00022928,2]
[315438978,1709038240501,-500.0,0.00022928,2]
[315438980,1709038240510,-500.0,0.00022928,2]
[315438982,1709038240519,-283.28560129,0.00022928,2]
[315438984,1709038240528,-353.56904568,0.00022928,2]
[315438986,1709038240540,-500.0,0.00022928,2]
[315438989,1709038240549,-500.0,0.00022928,2]
[315438991,1709038240558,-500.0,0.00022928,2]
[315438993,1709038240567,-500.0,0.00022928,2]
[315438995,1709038240577,-545.73,0.00022928,2]
[315438997,1709038240586,-500.0,0.00022928,2]
[315438999,1709038240595,-15303.3249,0.00022929,2]
[315439001,1709038240605,-26681.5583,0.00022929,2]
[315439003,1709038240614,-6325.5806,0.00022929,2]
[315439005,1709038240623,-150.0,0.00022931,2]
[315439007,1709038240633,-194.16873166,0.00022936,2]
[315439009,1709038240643,-300.0,0.00022957,2]
[315439011,1709038240653,-150.0,0.00022962,2]
[315439012,1709038240662,-150.0,0.00022971,2]
[315439014,1709038240671,-500.0,0.00022977,2]
[315439016,1709038240680,-500.0,0.00022977,2]
[315439018,1709038240690,-11697.50051765,0.00022978,2]
[315439020,1709038240699,-14741.21461678,0.00022978,2]
[315439023,1709038240708,-50000.0,0.00022978,2]
[315439025,1709038240718,-28772.40118359,0.00022978,2]
[315439027,1709038240727,-500.0,0.00022978,2]
[315439029,1709038240737,-2545.19,0.00022978,2]
[315439031,1709038240746,-2545.19,0.00022978,2]
[315439033,1709038240755,-500.0,0.00022978,2]
[315439035,1709038240765,-500.0,0.00022978,2]
[315439037,1709038240774,-567.57,0.00022978,2]
[315439039,1709038240785,-575.99,0.00022978,2]
[315439041,1709038240794,-575.99,0.00022978,2]
[315439043,1709038240805,-500.0,0.00022978,2]
[315439045,1709038240814,-500.0,0.00022978,2]
[315439047,1709038240822,-500.0,0.00022978,2]
[315439049,1709038240831,-579.24,0.00022978,2]
[315439051,1709038240840,-897.33,0.00022978,2]
[315439053,1709038240849,-897.33,0.00022978,2]
[315439055,1709038240858,-500.0,0.00022978,2]
[315439057,1709038240867,-500.0,0.00022978,2]
[315439059,1709038240876,-500.0,0.00022978,2]
[315439061,1709038240885,-500.0,0.00022978,2]
[315439063,1709038240894,-500.0,0.00022978,2]
[315439065,1709038240903,-500.0,0.00022978,2]
[315439067,1709038240912,-500.0,0.00022978,2]
[315439069,1709038240921,-500.0,0.00022978,2]
[315439071,1709038240930,-500.0,0.00022978,2]
[315439073,1709038240940,-793.77,0.00022978,2]
[315439075,1709038240950,-793.77,0.00022978,2]
[315439077,1709038240959,-500.0,0.00022978,2]
[315439079,1709038240969,-14127.57513937,0.00022978,2]
[315439081,1709038240982,-69610.96896661,0.00022978,2]
[315439083,1709038240993,-25037.47063414,0.00022978,2]
[315439086,1709038241005,-4098.0809924,0.00022978,2]
[315439088,1709038241016,-8565.87389075,0.00022978,2]
[315439090,1709038241026,-500.0,0.00022978,2]
[315439092,1709038241037,-1540.45,0.00022978,2]
[315439094,1709038241046,-103369.67610925,0.00022979,2]
[315439099,1709038241077,-163.52722071,0.000208,2]
[315439100,1709038241086,-7562.52508354,0.00022979,2]
[315439149,1709038241549,500.0,0.0003,120]
[315439154,1709038241585,-500.0,0.00022928,2]
[315439166,1709038241738,-2095.88351195,0.00022979,2]
[315439168,1709038241775,-2631.6734244,0.00022979,2]
[315439172,1709038241802,-5727.83371092,0.00022979,2]
[315439174,1709038241814,-439.0039486,0.00022979,2]
[315439177,1709038241826,-427.68686007,0.00022979,2]
[315439179,1709038241837,-1692.18667727,0.00022979,2]
[315439181,1709038241849,-3602.21195516,0.00022979,2]
[315439183,1709038241861,-4128.63986883,0.00022979,2]
[315439186,1709038241872,-3933.36463944,0.00022979,2]
[315439188,1709038241884,-4432.26839026,0.00022979,2]
[315439190,1709038241895,-3986.2815106,0.00022979,2]
[315439192,1709038241907,-5970.76430971,0.00022979,2]
[315439194,1709038241916,-6944.9225454,0.00022979,2]
[315439197,1709038241927,-8668.56995236,0.00022979,2]
[315439207,1709038242010,-89037.8050722,0.00022979,2]
[315439209,1709038242020,-434.13441716,0.00022979,2]
[315439211,1709038242029,-500.0,0.00022979,2]
[315439213,1709038242042,-500.0,0.00022979,2]
[315439215,1709038242051,-641.59831681,0.00022979,2]
[315439217,1709038242061,-500.0,0.00022979,2]
[315439219,1709038242070,-500.0,0.00022979,2]
[315439220,1709038242080,-500.0,0.00022979,2]
[315439223,1709038242089,-500.0,0.00022979,2]
[315439225,1709038242099,-500.0,0.00022979,2]
[315439227,1709038242108,-500.0,0.00022979,2]
[315439229,1709038242117,-500.0,0.00022979,2]
[315439230,1709038242127,-316.28862577,0.00022979,2]
[315439233,1709038242136,-500.0,0.00022979,2]
[315439235,1709038242146,-500.0,0.00022979,2]
[315439237,1709038242155,-500.0,0.00022979,2]
[315439239,1709038242166,-500.0,0.00022979,2]
[315439241,1709038242175,-500.0,0.00022979,2]
[315439243,1709038242185,-500.0,0.00022979,2]
[315439245,1709038242195,-500.0,0.00022979,2]
[315439247,1709038242205,-500.0,0.00022979,2]
[315439249,1709038242216,-500.0,0.00022979,2]
[315439251,1709038242226,-500.0,0.00022979,2]
[315439253,1709038242236,-500.0,0.00022979,2]
[315439255,1709038242245,-500.0,0.00022979,2]
[315439257,1709038242254,-500.0,0.00022979,2]
[315439259,1709038242263,-500.0,0.00022979,2]
[315439261,1709038242273,-500.0,0.00022979,2]
[315439263,1709038242284,-500.0,0.00022979,2]
[315439265,1709038242295,-500.0,0.00022979,2]
[315439267,1709038242305,-500.0,0.00022979,2]
[315439269,1709038242315,-500.0,0.00022979,2]
[315439271,1709038242325,-500.0,0.00022979,2]
[315439273,1709038242335,-500.0,0.00022979,2]
[315439275,1709038242345,-2545.19,0.00022979,2]
[315439277,1709038242355,-500.0,0.00022979,2]
[315439279,1709038242364,-500.0,0.00022979,2]
[315439281,1709038242375,-2545.19,0.00022979,2]
[315439283,1709038242388,-500.0,0.00022979,2]
[315439285,1709038242398,-2545.19,0.00022979,2]
[315439287,1709038242409,-500.0,0.00022979,2]
[315439289,1709038242419,-2545.19,0.00022979,2]
[315439291,1709038242429,-500.0,0.00022979,2]
[315439293,1709038242438,-2545.19,0.00022979,2]
[315439295,1709038242447,-2545.19,0.00022979,2]
[315439297,1709038242456,-500.0,0.00022979,2]
[315439299,1709038242465,-500.0,0.00022979,2]
[315439301,1709038242475,-500.0,0.00022979,2]
[315439303,1709038242485,-500.0,0.00022979,2]
[315439305,1709038242495,-500.0,0.00022979,2]
[315439307,1709038242505,-567.57,0.00022979,2]
[315439309,1709038242514,-567.57,0.00022979,2]
[315439311,1709038242524,-567.57,0.00022979,2]
[315439313,1709038242535,-567.57,0.00022979,2]
[315439315,1709038242544,-567.57,0.00022979,2]
[315439317,1709038242554,-575.99,0.00022979,2]
[315439319,1709038242564,-575.99,0.00022979,2]
[315439321,1709038242573,-575.99,0.00022979,2]
[315439324,1709038242583,-575.99,0.00022979,2]
[315439327,1709038242592,-575.99,0.00022979,2]
[315439329,1709038242602,-575.99,0.00022979,2]
[315439333,1709038242610,-500.0,0.00022979,2]
[315439337,1709038242620,-500.0,0.00022979,2]
[315439341,1709038242629,-500.0,0.00022979,2]
[315439345,1709038242639,-500.0,0.00022979,2]
[315439348,1709038242649,-500.0,0.00022979,2]
[315439352,1709038242659,-500.0,0.00022979,2]
[315439355,1709038242668,-500.0,0.00022979,2]
[315439358,1709038242678,-500.0,0.00022979,2]
[315439362,1709038242690,-500.0,0.00022979,2]
[315439365,1709038242699,-500.0,0.00022979,2]
[315439367,1709038242709,-500.0,0.00022979,2]
[315439369,1709038242718,-579.24,0.00022979,2]
[315439371,1709038242728,-579.24,0.00022979,2]
[315439373,1709038242737,-579.24,0.00022979,2]
[315439376,1709038242746,-579.24,0.00022979,2]
[315439379,1709038242756,-579.24,0.00022979,2]
[315439382,1709038242765,-897.33,0.00022979,2]
[315439385,1709038242775,-897.33,0.00022979,2]
[315439387,1709038242787,-897.33,0.00022979,2]
[315439389,1709038242798,-897.33,0.00022979,2]
[315439391,1709038242807,-897.33,0.00022979,2]
[315439394,1709038242817,-897.33,0.00022979,2]
[315439397,1709038242826,-500.0,0.00022979,2]
[315439402,1709038242836,-500.0,0.00022979,2]
[315439406,1709038242844,-500.0,0.00022979,2]
[315439410,1709038242853,-500.0,0.00022979,2]
[315439414,1709038242863,-500.0,0.00022979,2]
[315439418,1709038242872,-500.0,0.00022979,2]
[315439421,1709038242881,-500.0,0.00022979,2]
[315439424,1709038242890,-500.0,0.00022979,2]
[315439427,1709038242899,-500.0,0.00022979,2]
[315439429,1709038242908,-500.0,0.00022979,2]
[315439432,1709038242918,-500.0,0.00022979,2]
[315439435,1709038242927,-500.0,0.00022979,2]
[315439439,1709038242936,-500.0,0.00022979,2]
[315439442,1709038242946,-431.08329395,0.00022979,2]
[315439444,1709038242955,-500.0,0.00022979,2]
[315439448,1709038242965,-500.0,0.00022979,2]
[315439451,1709038242974,-500.0,0.00022979,2]
[315439454,1709038242984,-500.0,0.00022979,2]
[315439457,1709038242993,-500.0,0.00022979,2]
[315439460,1709038243002,-500.0,0.00022979,2]
[315439463,1709038243011,-500.0,0.00022979,2]
[315439466,1709038243020,-500.0,0.00022979,2]
[315439469,1709038243029,-500.0,0.00022979,2]
[315439471,1709038243040,-500.0,0.00022979,2]
[315439473,1709038243048,-500.0,0.00022979,2]
[315439475,1709038243058,-500.0,0.00022979,2]
[315439477,1709038243067,-500.0,0.00022979,2]
[315439479,1709038243075,-500.0,0.00022979,2]
[315439481,1709038243084,-500.0,0.00022979,2]
[315439483,1709038243093,-500.0,0.00022979,2]
[315439485,1709038243102,-500.0,0.00022979,2]
[315439487,1709038243112,-500.0,0.00022979,2]
[315439489,1709038243121,-500.0,0.00022979,2]
[315439490,1709038243130,-500.0,0.00022979,2]
[315439492,1709038243140,-500.0,0.00022979,2]
[315439495,1709038243149,-793.77,0.00022979,2]
[315439497,1709038243158,-793.77,0.00022979,2]
[315439499,1709038243168,-793.77,0.00022979,2]
[315439501,1709038243177,-793.77,0.00022979,2]
[315439503,1709038243187,-793.77,0.00022979,2]
[315439504,1709038243196,-793.77,0.00022979,2]
[315439506,1709038243206,-500.0,0.00022979,2]
[315439508,1709038243215,-500.0,0.00022979,2]
[315439510,1709038243232,-500.0,0.00022979,2]
[315439513,1709038243245,-500.0,0.00022979,2]
[315439515,1709038243254,-500.0,0.00022979,2]
[315439517,1709038243263,-500.0,0.00022979,2]
[315439518,1709038243273,-500.0,0.00022979,2]
[315439520,1709038243282,-500.0,0.00022979,2]
[315439523,1709038243293,-500.0,0.00022979,2]
[315439525,1709038243303,-500.0,0.00022979,2]
[315439527,1709038243314,-500.0,0.00022979,2]
[315439529,1709038243324,-500.0,0.00022979,2]
[315439530,1709038243333,-1540.45,0.00022979,2]
[315439533,1709038243343,-1540.45,0.00022979,2]
[315439535,1709038243352,-1540.45,0.00022979,2]
[315439537,1709038243362,-1540.45,0.00022979,2]
[315439539,1709038243372,-1540.45,0.00022979,2]
[315439541,1709038243381,-908543.64369186,0.0002298,4]
[315439543,1709038243391,-638358.47991626,0.0002298,2]
[315439545,1709038243404,-151.0,0.0002298,7]
[315439547,1709038243413,-1125.707232,0.0002298,7]
[315439549,1709038243422,-1125.707232,0.0002298,7]
[315439551,1709038243431,-210.128,0.00022983,2]
[315439553,1709038243441,-162.0,0.00022983,2]
[315439555,1709038243450,-2297.0,0.00022983,2]
[315439557,1709038243459,-331.941,0.00022983,2]
[315439558,1709038243468,-1040.0,0.00022983,2]
[315439559,1709038243477,-250.0,0.00022983,2]
[315439560,1709038243486,-150.648,0.00022983,2]
[315439561,1709038243495,-150.0,0.00022983,2]
[315439562,1709038243504,-194.16873166,0.0002299,2]
[315439563,1709038243513,-150.0,0.00022991,2]
[315439564,1709038243523,-150.0,0.00022995,2]
[315439565,1709038243532,-500.0,0.00022995,2]
[315439567,1709038243543,-500.0,0.00022995,2]
[315439568,1709038243552,-500.0,0.00022996,2]
[315439570,1709038243561,-500.0,0.00022996,2]
[315439572,1709038243571,-500.0,0.00022996,2]
[315439575,1709038243581,-500.0,0.00022996,2]
[315439577,1709038243592,-500.0,0.00022996,2]
[315439578,1709038243601,-500.0,0.00022996,2]
[315439580,1709038243611,-500.0,0.00022996,2]
[315439582,1709038243620,-500.0,0.00022996,2]
[315439584,1709038243629,-500.0,0.00022996,2]
[315439587,1709038243639,-500.0,0.00022996,2]
[315439589,1709038243648,-500.0,0.00022996,2]
[315439590,1709038243657,-500.0,0.00022996,2]
[315439592,1709038243666,-500.0,0.00022996,2]
[315439595,1709038243676,-500.0,0.00022996,2]
[315439597,1709038243686,-500.0,0.00022996,2]
[315439599,1709038243695,-500.0,0.00022996,2]
[315439601,1709038243704,-500.0,0.00022996,2]
[315439603,1709038243714,-500.0,0.00022996,2]
[315439605,1709038243723,-500.0,0.00022996,2]
[315439607,1709038243732,-500.0,0.00022996,2]
[315439609,1709038243741,-500.0,0.00022996,2]
[315439611,1709038243751,-500.0,0.00022996,2]
[315439613,1709038243759,-500.0,0.00022996,2]
[315439615,1709038243768,-545.83069302,0.00022996,2]
[315439617,1709038243778,-500.0,0.00022996,2]
[315439619,1709038243789,-500.0,0.00022996,2]
[315439621,1709038243798,-500.0,0.00022996,2]
[315439623,1709038243807,-500.0,0.00022996,2]
[315439625,1709038243815,-153.18611558,0.00022996,2]
[315439627,1709038243824,-500.0,0.00022996,2]
[315439629,1709038243834,-500.0,0.00022996,2]
[315439631,1709038243843,-500.0,0.00022996,2]
[315439633,1709038243852,-500.0,0.00022996,2]
[315439635,1709038243862,-402.96,0.00022996,2]
[315439637,1709038243871,-500.0,0.00022996,2]
[315439639,1709038243881,-500.0,0.00022996,2]
[315439641,1709038243889,-500.0,0.00022996,2]
[315439643,1709038243898,-500.0,0.00022996,2]
[315439644,1709038243907,-500.0,0.00022996,2]
[315439646,1709038243916,-500.0,0.00022996,2]
[315439648,1709038243925,-500.0,0.00022998,2]
[315439650,1709038243934,-500.0,0.00022998,2]
[315439652,1709038243943,-258.60351982,0.00022998,5]
[315439655,1709038243952,-500.0,0.00022998,2]
[315439657,1709038243961,-500.0,0.00022998,2]
[315439659,1709038243970,-500.0,0.00022998,2]
[315439661,1709038243979,-500.0,0.00022998,2]
[315439663,1709038243989,-567.57,0.00022998,2]
[315439664,1709038243998,-500.0,0.00022998,2]
[315439666,1709038244007,-500.0,0.00022998,2]
[315439669,1709038244017,-579.24,0.00022998,2]
[315439671,1709038244026,-500.0,0.00022998,2]
[315439672,1709038244037,-500.0,0.00022998,2]
[315439675,1709038244046,-500.0,0.00022998,2]
[315439677,1709038244055,-500.0,0.00022998,2]
[315439678,1709038244064,-500.0,0.00022998,2]
[315439681,1709038244075,-1540.45,0.00022998,2]
[315439683,1709038244084,-213.52359217,0.00022999,2]
[315439684,1709038244093,-500.0,0.00022999,2]
[315439690,1709038244136,-500.0,0.00022999,2]
[315439692,1709038244146,-500.0,0.00022999,2]
[315439694,1709038244155,-500.0,0.00022999,2]
[315439696,1709038244164,-500.0,0.00022999,2]
[315439698,1709038244173,-500.0,0.00022999,2]
[315439700,1709038244182,-500.0,0.00022999,2]
[315439702,1709038244191,-500.0,0.00022999,2]
[315439704,1709038244200,-500.0,0.00022999,2]
[315439706,1709038244209,-500.0,0.00022999,2]
[315439708,1709038244218,-1000.0,0.00022999,2]
[315439710,1709038244227,-500.0,0.00022999,2]
[315439712,1709038244236,-500.0,0.00022999,2]
[315439714,1709038244244,-500.0,0.00022999,2]
[315439716,1709038244253,-500.0,0.00022999,2]
[315439718,1709038244262,-500.0,0.00022999,2]
[315439720,1709038244271,-500.0,0.00022999,2]
[315439722,1709038244280,-500.0,0.00022999,2]
[315439724,1709038244291,-500.0,0.00022999,2]
[315439726,1709038244301,-500.0,0.00022999,2]
[315439728,1709038244310,-500.0,0.00022999,2]
[315439730,1709038244319,-500.0,0.00022999,2]
[315439732,1709038244328,-499.50438126,0.00022999,2]
[315439734,1709038244338,-500.0,0.00022999,2]
[315439736,1709038244347,-500.0,0.00022999,2]
[315439738,1709038244356,-500.0,0.00022999,2]
[315439740,1709038244367,-500.0,0.00022999,2]
[315439742,1709038244377,-500.0,0.00022999,2]
[315439744,1709038244386,-561.26195624,0.00022999,2]
[315439746,1709038244396,-500.0,0.00022999,2]
[315439748,1709038244407,-488.2,0.00022999,2]
[315439750,1709038244417,-500.0,0.00022999,2]
[315439752,1709038244426,-500.0,0.00022999,2]
[315439754,1709038244436,-500.0,0.00022999,2]
[315439756,1709038244445,-500.0,0.00022999,2]
[315439758,1709038244454,-500.0,0.00022999,2]
[315439760,1709038244463,-500.0,0.00022999,2]
[315439762,1709038244473,-280.12,0.00022999,2]
[315439764,1709038244483,-500.0,0.00022999,2]
[315439766,1709038244491,-553.9616673,0.00022999,2]
[315439768,1709038244501,-707.0,0.00023,2]
[315439770,1709038244509,-8945.00715781,0.00023,2]
[315439772,1709038244519,-437.08143572,0.00023,2]
[315439774,1709038244528,-1209.81995107,0.00023,2]
[315439775,1709038244539,-677.73945384,0.00023,2]
[315439776,1709038244549,-2836.588491,0.00023,2]
[315439777,1709038244558,-171.48,0.00023,2]
[315439778,1709038244567,-150.0,0.00023006,2]
[315439779,1709038244576,-150.0,0.00023006,2]
[315439780,1709038244586,-156.43,0.00023014,2]
[315439781,1709038244595,-158.08,0.00023014,2]
[315439782,1709038244605,-2545.19,0.00023027,2]
[315439783,1709038244614,-575.99,0.00023027,2]
[315439784,1709038244623,-500.0,0.00023027,2]
[315439785,1709038244633,-897.33,0.00023027,2]
[315439786,1709038244642,-500.0,0.00023027,2]
[315439787,1709038244651,-500.0,0.00023027,2]
[315439789,1709038244661,-793.77,0.00023027,2]
[315439791,1709038244669,-500.0,0.00023028,2]
[315439793,1709038244678,-500.0,0.00023028,2]
[315439795,1709038244688,-500.0,0.00023028,2]
[315439797,1709038244698,-515.12919729,0.00023028,2]
[315439799,1709038244708,-500.0,0.00023028,2]
[315439800,1709038244718,-500.0,0.00023028,2]
[315439802,1709038244728,-500.0,0.00023028,2]
[315439804,1709038244738,-500.0,0.00023028,2]
[315439806,1709038244749,-500.0,0.00023028,2]
[315439808,1709038244759,-500.0,0.00023028,2]
[315439810,1709038244769,-500.0,0.00023028,2]
[315439812,1709038244779,-500.0,0.00023028,2]
[315439814,1709038244792,-500.0,0.00023028,2]
[315439816,1709038244801,-420.88484402,0.00023028,2]
[315439818,1709038244811,-500.0,0.00023028,2]
[315439820,1709038244821,-500.0,0.00023028,2]
[315439822,1709038244831,-500.0,0.00023028,2]
[315439824,1709038244841,-500.0,0.00023028,2]
[315439826,1709038244850,-500.0,0.00023028,2]
[315439828,1709038244860,-500.0,0.00023028,2]
[315439830,1709038244871,-500.0,0.00023028,2]
[315439832,1709038244881,-158.659641,0.00023028,2]
[315439834,1709038244891,-500.0,0.00023028,2]
[315439836,1709038244902,-431.17818989,0.00023028,2]
[315439838,1709038244912,-500.0,0.00023028,2]
[315439840,1709038244923,-500.0,0.00023028,2]
[315439842,1709038244932,-500.0,0.00023028,2]
[315439844,1709038244942,-295.68268872,0.00023028,2]
[315439846,1709038244951,-500.0,0.00023028,2]
[315439848,1709038244961,-500.0,0.00023028,2]
[315439850,1709038244970,-500.0,0.00023028,2]
[315439851,1709038244979,-500.0,0.00023028,2]
[315439852,1709038244988,-500.0,0.00023028,2]
[315439853,1709038244998,-500.0,0.00023028,2]
[315439854,1709038245007,-500.0,0.00023028,2]
[315439855,1709038245016,-500.0,0.00023028,2]